[Event "Vastgota Open 2022"]
[Site "Skara stadshotell, Jarnvagsgatan 5, Skara, Sweden"]
[Date "2022.10.29"]
[Round "3.7"]
[White "Cederqvist, Niclas"]
[Black "Johnson, Daniel"]
[Result "1/2-1/2"]
[TimeControl "30 minutes + 10 seconds per move from move one."]
[WhiteFideId "1702076"]
[BlackFideId "1721283"]
[WhiteElo "1883"]
[BlackElo "2155"]

1. d4 {[%clk 00:30:10]} {[%emt 00:27:04]} d5 {[%clk 00:26:55]} {[%emt
00:03:26]} 2. c4 {[%clk 00:29:15]} {[%emt 00:01:08]} e6 {[%clk 00:27:03]}
{[%emt 00:00:02]} 3. Nc3 {[%clk 00:29:20]} {[%emt 00:00:04]} Nf6 {[%clk
00:27:06]} {[%emt 00:00:07]} 4. Nf3 {[%clk 00:29:20]} {[%emt 00:00:10]} Bb4
{[%clk 00:26:36]} {[%emt 00:00:41]} 5. e3 {[%clk 00:29:19]} {[%emt 00:00:11]}
O-O {[%clk 00:26:41]} {[%emt 00:00:05]} 6. a3 {[%clk 00:29:01]} {[%emt
00:00:28]} Be7 {[%clk 00:26:07]} {[%emt 00:00:44]} 7. Bd3 {[%clk 00:29:01]}
{[%emt 00:00:10]} dxc4 {[%clk 00:26:07]} {[%emt 00:00:10]} 8. Bxc4 {[%clk
00:29:09]} {[%emt 00:00:02]} c5 {[%clk 00:25:38]} {[%emt 00:00:39]} 9. dxc5
{[%clk 00:28:50]} {[%emt 00:00:29]} Qxd1+ {[%clk 00:24:27]} {[%emt 00:01:22]}
10. Kxd1 {[%clk 00:28:54]} {[%emt 00:00:06]} Bxc5 {[%clk 00:23:39]} {[%emt
00:00:58]} 11. b4 {[%clk 00:28:50]} {[%emt 00:00:14]} Be7 {[%clk 00:22:59]}
{[%emt 00:00:50]} 12. Bb2 {[%clk 00:28:46]} {[%emt 00:00:14]} Nbd7 {[%clk
00:22:34]} {[%emt 00:00:35]} 13. Ke2 {[%clk 00:28:06]} {[%emt 00:00:49]} a5
{[%clk 00:22:06]} {[%emt 00:00:38]} 14. b5 {[%clk 00:27:33]} {[%emt 00:00:44]}
Nc5 {[%clk 00:21:25]} {[%emt 00:00:51]} 15. Rhd1 {[%clk 00:27:03]} {[%emt
00:00:40]} Bd7 {[%clk 00:19:08]} {[%emt 00:02:27]} 16. Ne5 {[%clk 00:26:01]}
{[%emt 00:01:11]} Rfc8 {[%clk 00:19:04]} {[%emt 00:00:15]} 17. Nxd7 {[%clk
00:25:49]} {[%emt 00:00:22]} Nfxd7 {[%clk 00:19:09]} {[%emt 00:00:05]} 18. Rac1
{[%clk 00:22:45]} {[%emt 00:03:14]} Bf6 {[%clk 00:17:37]} {[%emt 00:01:42]} 19.
Ba2 {[%clk 00:20:58]} {[%emt 00:01:58]} Kf8 {[%clk 00:13:39]} {[%emt 00:04:08]}
20. f3 {[%clk 00:18:55]} {[%emt 00:02:12]} Ke7 {[%clk 00:12:51]} {[%emt
00:00:58]} 21. Rd2 {[%clk 00:17:59]} {[%emt 00:01:06]} Nb6 {[%clk 00:11:47]}
{[%emt 00:01:14]} 22. Rdc2 {[%clk 00:15:37]} {[%emt 00:02:32]} Ke8 {[%clk
00:07:43]} {[%emt 00:04:14]} 23. Nd1 {[%clk 00:12:12]} {[%emt 00:03:35]} Bxb2
{[%clk 00:04:37]} {[%emt 00:03:16]} 24. Nxb2 {[%clk 00:12:08]} {[%emt
00:00:14]} Ncd7 {[%clk 00:04:24]} {[%emt 00:00:23]} 25. Bb1 {[%clk 00:10:33]}
{[%emt 00:01:45]} Rxc2+ {[%clk 00:01:51]} {[%emt 00:02:43]} 26. Rxc2 {[%emt
00:02:47]} 1/2-1/2

[Event "Vastgota Open 2022"]
[Site "Skara stadshotell, Jarnvagsgatan 5, Skara, Sweden"]
[Date "2022.10.29"]
[Round "3.8"]
[White "Lind, Jan-Olov"]
[Black "Bjorklund, Thomas"]
[Result "1-0"]
[TimeControl "30 minutes + 10 seconds per move from move one."]
[WhiteFideId "1701193"]
[BlackFideId "1724576"]
[WhiteElo "2123"]
[BlackElo "2122"]

1. e4 {[%clk 00:30:16]} {[%emt 00:00:02]} e5 {[%clk 00:30:19]} {[%emt
00:00:02]} 2. Nf3 {[%clk 00:30:23]} {[%emt 00:00:03]} Nc6 {[%clk 00:30:25]}
{[%emt 00:00:05]} 3. d4 {[%clk 00:30:30]} {[%emt 00:00:02]} exd4 {[%clk
00:30:32]} {[%emt 00:00:03]} 4. c3 {[%clk 00:30:38]} {[%emt 00:00:01]} dxc3
{[%clk 00:30:26]} {[%emt 00:00:17]} 5. Nxc3 {[%clk 00:30:46]} {[%emt 00:00:03]}
d6 {[%clk 00:30:29]} {[%emt 00:00:06]} 6. Bc4 {[%clk 00:30:47]} {[%emt
00:00:08]} Be7 {[%clk 00:30:28]} {[%emt 00:00:11]} 7. Qb3 {[%clk 00:30:40]}
{[%emt 00:00:17]} Be6 {[%clk 00:30:18]} {[%emt 00:00:21]} 8. Bxe6 {[%clk
00:29:03]} {[%emt 00:01:46]} fxe6 {[%clk 00:30:24]} {[%emt 00:00:05]} 9. Qxb7
{[%clk 00:28:18]} {[%emt 00:00:55]} Na5 {[%clk 00:30:19]} {[%emt 00:00:15]} 10.
Qa6 {[%clk 00:27:54]} {[%emt 00:00:34]} c5 {[%clk 00:30:11]} {[%emt 00:00:17]}
11. e5 {[%clk 00:24:42]} {[%emt 00:03:21]} Qb6 {[%clk 00:29:40]} {[%emt
00:00:42]} 12. Qb5+ {[%clk 00:24:16]} {[%emt 00:00:36]} Nc6 {[%clk 00:27:16]}
{[%emt 00:02:34]} 13. exd6 {[%clk 00:23:40]} {[%emt 00:00:46]} Bxd6 {[%clk
00:27:25]} {[%emt 00:00:02]} 14. O-O {[%clk 00:22:51]} {[%emt 00:00:58]} O-O-O
{[%clk 00:26:20]} {[%emt 00:01:16]} 15. Qc4 {[%clk 00:21:02]} {[%emt 00:01:58]}
Re8 {[%clk 00:25:22]} {[%emt 00:01:08]} 16. Ne4 {[%clk 00:20:18]} {[%emt
00:00:53]} Bf8 {[%clk 00:24:48]} {[%emt 00:00:45]} 17. Be3 {[%clk 00:19:01]}
{[%emt 00:01:26]} Nf6 {[%clk 00:24:46]} {[%emt 00:00:13]} 18. Bxc5 {[%clk
00:17:43]} {[%emt 00:01:27]} Bxc5 {[%clk 00:24:51]} {[%emt 00:00:05]} 19. Nxc5
{[%clk 00:17:47]} {[%emt 00:00:06]} Kb8 {[%clk 00:24:36]} {[%emt 00:00:25]} 20.
b4 {[%clk 00:17:13]} {[%emt 00:00:44]} e5 {[%clk 00:24:14]} {[%emt 00:00:33]}
21. Ng5 {[%clk 00:14:31]} {[%emt 00:02:52]} Ka8 {[%clk 00:24:08]} {[%emt
00:00:17]} 22. a3 {[%clk 00:13:58]} {[%emt 00:00:42]} Re7 {[%clk 00:23:32]}
{[%emt 00:00:45]} 23. Nge4 {[%clk 00:13:43]} {[%emt 00:00:24]} Nd4 {[%clk
00:23:25]} {[%emt 00:00:18]} 24. Rfe1 {[%clk 00:12:55]} {[%emt 00:00:58]} Rd8
{[%clk 00:22:47]} {[%emt 00:00:48]} 25. Rac1 {[%clk 00:12:24]} {[%emt
00:00:41]} Nd5 {[%clk 00:21:52]} {[%emt 00:01:04]} 26. Nc3 {[%clk 00:11:09]}
{[%emt 00:01:26]} Nxc3 {[%clk 00:21:36]} {[%emt 00:00:27]} 27. Qxc3 {[%clk
00:11:08]} {[%emt 00:00:11]} Qb5 {[%clk 00:21:03]} {[%emt 00:00:43]} 28. Qe3
{[%clk 00:10:53]} {[%emt 00:00:24]} Kb8 {[%clk 00:20:31]} {[%emt 00:00:42]} 29.
a4 {[%clk 00:09:22]} {[%emt 00:01:41]} Qb6 {[%clk 00:20:18]} {[%emt 00:00:23]}
30. b5 {[%clk 00:09:20]} {[%emt 00:00:13]} e4 {[%clk 00:18:54]} {[%emt
00:01:34]} 31. Na6+ {[%clk 00:09:03]} {[%emt 00:00:27]} Ka8 {[%clk 00:18:47]}
{[%emt 00:00:17]} 32. Qg5 {[%clk 00:08:12]} {[%emt 00:01:00]} Qf6 {[%clk
00:16:51]} {[%emt 00:02:06]} 33. Qd5+ {[%clk 00:07:48]} {[%emt 00:00:34]} Rb7
{[%clk 00:16:16]} {[%emt 00:00:46]} 34. Qxe4 {[%clk 00:07:40]} {[%emt
00:00:18]} Nb3 {[%clk 00:15:42]} {[%emt 00:00:44]} 35. Rc7 {[%clk 00:06:33]}
{[%emt 00:01:16]} Na5 {[%clk 00:15:46]} {[%emt 00:00:07]} 36. Rec1 {[%clk
00:05:22]} {[%emt 00:01:21]} Qd6 {[%clk 00:14:37]} {[%emt 00:01:20]} 37. Rc8+
{[%emt 00:00:25]} Qb8 {[%clk 00:14:42]} {[%emt 00:00:03]} 38. Rxb8+ {[%clk
00:05:10]} {[%emt 00:00:08]} Rdxb8 {[%clk 00:14:50]} {[%emt 00:00:03]} 39. Nc7#
{[%clk 00:05:18]} 1-0

[Event "Vastgota Open 2022"]
[Site "Skara stadshotell, Jarnvagsgatan 5, Skara, Sweden"]
[Date "2022.10.29"]
[Round "3.9"]
[White "Thyberg, Andre"]
[Black "Koski, Viljo"]
[Result "1-0"]
[TimeControl "30 minutes + 10 seconds per move from move one."]
[WhiteFideId "1764764"]
[BlackFideId "1717553"]
[WhiteElo "1632"]
[BlackElo "1870"]

1. e4 {[%clk 00:30:16]} {[%emt 00:00:02]} e5 {[%clk 00:30:09]} {[%emt
00:00:11]} 2. Nf3 {[%clk 00:30:21]} {[%emt 00:00:04]} Nc6 {[%clk 00:30:17]}
{[%emt 00:00:03]} 3. Bc4 {[%clk 00:30:24]} {[%emt 00:00:07]} Be7 {[%clk
00:30:10]} {[%emt 00:00:16]} 4. c3 {[%clk 00:30:08]} {[%emt 00:00:26]} Nf6
{[%clk 00:30:08]} {[%emt 00:00:12]} 5. d3 {[%clk 00:30:12]} {[%emt 00:00:07]}
d6 {[%clk 00:30:11]} {[%emt 00:00:06]} 6. h3 {[%clk 00:30:03]} {[%emt
00:00:19]} O-O {[%clk 00:30:16]} {[%emt 00:00:04]} 7. O-O {[%clk 00:29:53]}
{[%emt 00:00:21]} Na5 {[%clk 00:30:14]} {[%emt 00:00:13]} 8. Nbd2 {[%clk
00:29:43]} {[%emt 00:00:19]} h6 {[%clk 00:29:57]} {[%emt 00:00:27]} 9. b4
{[%clk 00:28:38]} {[%emt 00:01:16]} Nxc4 {[%clk 00:29:48]} {[%emt 00:00:18]} 10.
Nxc4 {[%clk 00:28:39]} {[%emt 00:00:09]} Be6 {[%clk 00:29:35]} {[%emt
00:00:24]} 11. Na5 {[%clk 00:26:53]} {[%emt 00:01:56]} Qc8 {[%clk 00:27:39]}
{[%emt 00:02:04]} 12. Re1 {[%clk 00:25:34]} {[%emt 00:01:30]} c6 {[%clk
00:27:04]} {[%emt 00:00:46]} 13. d4 {[%clk 00:23:06]} {[%emt 00:02:38]} b6
{[%clk 00:25:09]} {[%emt 00:02:06]} 14. Nb3 {[%clk 00:23:09]} {[%emt 00:00:07]}
exd4 {[%clk 00:24:41]} {[%emt 00:00:38]} 15. Nbxd4 {[%clk 00:22:29]} {[%emt
00:00:49]} c5 {[%clk 00:24:00]} {[%emt 00:00:51]} 16. Nxe6 {[%clk 00:21:55]}
{[%emt 00:00:44]} fxe6 {[%clk 00:23:15]} {[%emt 00:00:53]} 17. e5 {[%clk
00:19:52]} {[%emt 00:02:15]} Nd5 {[%clk 00:22:17]} {[%emt 00:01:07]} 18. exd6
{[%clk 00:18:22]} {[%emt 00:01:41]} Bf6 {[%clk 00:21:57]} {[%emt 00:00:30]} 19.
d7 {[%clk 00:15:45]} {[%emt 00:02:48]} Qxd7 {[%clk 00:18:24]} {[%emt 00:03:42]}
20. Ne5 {[%clk 00:12:42]} {[%emt 00:03:14]} Bxe5 {[%clk 00:17:33]} {[%emt
00:01:00]} 21. Rxe5 {[%clk 00:12:31]} {[%emt 00:00:21]} Qf7 {[%clk 00:17:35]}
{[%emt 00:00:07]} 22. Qe1 {[%clk 00:12:02]} {[%emt 00:00:38]} Rae8 {[%clk
00:16:58]} {[%emt 00:00:47]} 23. bxc5 {[%clk 00:11:33]} {[%emt 00:00:41]} bxc5
{[%clk 00:17:00]} {[%emt 00:00:08]} 24. Ba3 {[%clk 00:10:45]} {[%emt 00:00:58]}
Qg6 {[%clk 00:11:11]} {[%emt 00:05:58]} 25. Bxc5 {[%clk 00:08:26]} {[%emt
00:02:29]} Nf4 {[%clk 00:10:50]} {[%emt 00:00:31]} 26. Qe4 {[%clk 00:08:32]}
{[%emt 00:00:05]} Nxh3+ {[%clk 00:08:45]} {[%emt 00:02:14]} 27. Kf1 {[%clk
00:08:33]} {[%emt 00:00:08]} Qxe4 {[%clk 00:08:25]} {[%emt 00:00:31]} 28. Rxe4
{[%clk 00:08:40]} {[%emt 00:00:04]} Ng5 {[%clk 00:07:59]} {[%emt 00:00:36]} 29.
Ra4 {[%clk 00:07:44]} {[%emt 00:01:05]} Rf5 {[%clk 00:07:02]} {[%emt 00:01:07]}
30. Be3 {[%clk 00:06:34]} {[%emt 00:01:20]} a5 {[%clk 00:05:57]} {[%emt
00:01:16]} 31. Rb1 {[%clk 00:06:29]} {[%emt 00:00:14]} Rc8 {[%clk 00:06:02]}
{[%emt 00:00:06]} 32. Bd4 {[%clk 00:05:47]} {[%emt 00:00:51]} Ne4 {[%clk
00:05:54]} {[%emt 00:00:17]} 33. Rb7 {[%clk 00:05:35]} {[%emt 00:00:23]} Nxc3
{[%clk 00:04:41]} {[%emt 00:01:23]} 34. Rxg7+ {[%emt 00:00:13]} Kf8 35. Rh7
{[%clk 00:04:27]} {[%emt 00:01:04]} Kg8 {[%clk 00:04:31]} {[%emt 00:00:19]} 36.
Rh8+ {[%clk 00:04:35]} {[%emt 00:00:02]} Kf7 {[%clk 00:04:38]} {[%emt
00:00:02]} 37. Rxc8 {[%clk 00:04:09]} {[%emt 00:00:38]} Nxa4 {[%clk 00:04:46]}
{[%emt 00:00:02]} 38. Rc4 {[%clk 00:04:10]} {[%emt 00:00:08]} e5 {[%clk
00:04:21]} {[%emt 00:00:36]} 39. Rxa4 {[%clk 00:03:46]} {[%emt 00:00:34]} exd4
{[%clk 00:04:29]} {[%emt 00:00:02]} 40. Rxd4 {[%clk 00:03:54]} {[%emt
00:00:02]} Rc5 {[%clk 00:04:31]} {[%emt 00:00:07]} 41. Ke2 {[%clk 00:04:01]}
{[%emt 00:00:04]} Ke6 {[%clk 00:04:33]} {[%emt 00:00:08]} 42. Kd3 {[%clk
00:03:53]} {[%emt 00:00:18]} Rc1 {[%clk 00:04:26]} {[%emt 00:00:16]} 43. Rh4
{[%clk 00:04:00]} {[%emt 00:00:04]} Ra1 {[%clk 00:04:22]} {[%emt 00:00:14]} 44.
Ra4 {[%clk 00:04:08]} {[%emt 00:00:02]} Rg1 {[%clk 00:04:21]} {[%emt 00:00:10]}
45. g3 {[%clk 00:04:14]} {[%emt 00:00:04]} Rd1+ {[%clk 00:04:24]} {[%emt
00:00:07]} 46. Ke3 {[%clk 00:04:08]} {[%emt 00:00:14]} Rd5 {[%clk 00:04:32]}
{[%emt 00:00:05]} 47. Rh4 {[%clk 00:04:13]} {[%emt 00:00:05]} h5 {[%clk
00:04:40]} 48. Rc4 {[%clk 00:04:10]} {[%emt 00:00:13]} Ke5 {[%clk 00:04:42]}
{[%emt 00:00:08]} 49. Rc8 {[%clk 00:04:14]} {[%emt 00:00:06]} Ke6 {[%clk
00:04:41]} {[%emt 00:00:10]} 50. Re8+ {[%clk 00:04:10]} {[%emt 00:00:16]} Kf7
{[%clk 00:04:45]} {[%emt 00:00:06]} 51. Ra8 {[%clk 00:04:11]} {[%emt 00:00:09]}
Ke6 {[%clk 00:04:53]} {[%emt 00:00:01]} 52. Ra6+ {[%clk 00:04:16]} {[%emt
00:00:05]} Ke5 {[%clk 00:04:51]} {[%emt 00:00:13]} 53. Rh6 {[%clk 00:04:22]}
{[%emt 00:00:04]} Kf5 {[%emt 00:02:34]} 1-0

[Event "Vastgota Open 2022"]
[Site "Skara stadshotell, Jarnvagsgatan 5, Skara, Sweden"]
[Date "2022.10.29"]
[Round "3.10"]
[White "Berglund, Joar"]
[Black "Bellon Lopez, Juan Manuel"]
[Result "0-1"]
[TimeControl "30 minutes + 10 seconds per move from move one."]
[BlackTitle "GM"]
[WhiteFideId "1737856"]
[BlackFideId "2200031"]
[WhiteElo "1725"]
[BlackElo "2347"]

1. e4 {[%clk 00:30:18]} {[%emt 00:00:01]} c5 {[%clk 00:30:20]} 2. Nf3 {[%clk
00:30:24]} {[%emt 00:00:03]} e6 {[%clk 00:30:29]} 3. Nc3 {[%clk 00:30:30]}
{[%emt 00:00:04]} a6 {[%clk 00:30:38]} 4. a4 {[%clk 00:30:25]} {[%emt
00:00:15]} Qc7 {[%clk 00:30:41]} {[%emt 00:00:07]} 5. Bc4 {[%clk 00:30:29]}
{[%emt 00:00:07]} d6 {[%clk 00:30:39]} {[%emt 00:00:11]} 6. O-O {[%clk
00:30:31]} {[%emt 00:00:07]} Nf6 {[%clk 00:30:41]} {[%emt 00:00:09]} 7. d3
{[%clk 00:30:37]} {[%emt 00:00:04]} Nbd7 {[%clk 00:30:40]} {[%emt 00:00:11]} 8.
Bf4 {[%clk 00:30:41]} {[%emt 00:00:06]} Ne5 {[%clk 00:30:42]} {[%emt 00:00:08]}
9. Nxe5 {[%clk 00:30:23]} {[%emt 00:00:28]} dxe5 {[%clk 00:30:51]} {[%emt
00:00:02]} 10. Bg3 {[%clk 00:30:20]} {[%emt 00:00:12]} Bd6 {[%clk 00:30:10]}
{[%emt 00:00:51]} 11. Qd2 {[%clk 00:30:13]} {[%emt 00:00:18]} O-O {[%clk
00:30:12]} {[%emt 00:00:07]} 12. f4 {[%clk 00:30:09]} {[%emt 00:00:13]} exf4
{[%clk 00:30:20]} {[%emt 00:00:03]} 13. Bxf4 {[%clk 00:30:17]} Bxf4 {[%clk
00:30:24]} {[%emt 00:00:08]} 14. Qxf4 {[%clk 00:30:25]} {[%emt 00:00:02]} Qxf4
{[%clk 00:30:29]} {[%emt 00:00:05]} 15. Rxf4 {[%clk 00:30:33]} {[%emt
00:00:03]} Nd7 {[%clk 00:30:29]} {[%emt 00:00:09]} 16. Raf1 {[%clk 00:30:31]}
{[%emt 00:00:12]} Ne5 {[%clk 00:30:37]} {[%emt 00:00:01]} 17. Bb3 {[%clk
00:30:27]} {[%emt 00:00:15]} Bd7 {[%clk 00:30:38]} {[%emt 00:00:09]} 18. Nd1
{[%clk 00:29:49]} {[%emt 00:00:47]} b5 {[%clk 00:30:43]} {[%emt 00:00:06]} 19.
axb5 {[%clk 00:29:56]} {[%emt 00:00:03]} axb5 {[%clk 00:30:52]} 20. Ne3 {[%clk
00:30:02]} {[%emt 00:00:04]} h5 {[%clk 00:29:07]} {[%emt 00:01:54]} 21. Rh4
{[%clk 00:29:11]} {[%emt 00:01:01]} g6 {[%clk 00:29:05]} {[%emt 00:00:13]} 22.
g4 {[%clk 00:29:18]} {[%emt 00:00:03]} Rfc8 {[%clk 00:27:48]} {[%emt 00:01:26]}
23. c3 {[%clk 00:28:55]} {[%emt 00:00:32]} c4 {[%clk 00:27:40]} {[%emt
00:00:19]} 24. dxc4 {[%clk 00:28:59]} {[%emt 00:00:06]} bxc4 {[%clk 00:27:49]}
25. Bc2 {[%clk 00:28:54]} {[%emt 00:00:14]} hxg4 {[%clk 00:27:36]} {[%emt
00:00:24]} 26. Nxg4 {[%clk 00:29:00]} {[%emt 00:00:04]} Nxg4 {[%clk 00:27:40]}
{[%emt 00:00:07]} 27. Rxg4 {[%clk 00:29:03]} {[%emt 00:00:06]} Ra2 {[%clk
00:27:37]} {[%emt 00:00:12]} 28. e5 {[%clk 00:26:40]} {[%emt 00:02:34]} Be8
{[%clk 00:27:31]} {[%emt 00:00:17]} 29. Rb1 {[%clk 00:26:17]} {[%emt 00:00:32]}
Rc5 {[%clk 00:27:18]} {[%emt 00:00:22]} 30. h4 {[%clk 00:25:58]} {[%emt
00:00:29]} Kf8 {[%clk 00:27:05]} {[%emt 00:00:24]} 31. Re4 {[%clk 00:23:06]}
{[%emt 00:03:02]} Bc6 {[%clk 00:26:12]} {[%emt 00:01:02]} 32. Re2 {[%clk
00:21:11]} {[%emt 00:02:06]} Ke7 {[%clk 00:23:51]} {[%emt 00:02:31]} 33. Kf2
{[%clk 00:19:53]} {[%emt 00:01:28]} Rb5 {[%clk 00:23:03]} {[%emt 00:00:55]} 34.
b4 {[%clk 00:19:19]} {[%emt 00:00:47]} cxb3 {[%clk 00:20:36]} {[%emt 00:02:37]}
35. Bxb3 {[%clk 00:18:50]} {[%emt 00:00:40]} Rxe2+ {[%clk 00:20:25]} {[%emt
00:00:21]} 36. Kxe2 {[%clk 00:18:57]} {[%emt 00:00:03]} Rxe5+ {[%clk 00:20:25]}
{[%emt 00:00:10]} 37. Kf2 {[%clk 00:18:38]} {[%emt 00:00:28]} Re4 {[%clk
00:20:04]} {[%emt 00:00:31]} 38. Rh1 {[%clk 00:17:57]} {[%emt 00:00:51]} Rf4+
{[%clk 00:19:53]} {[%emt 00:00:21]} 39. Ke3 {[%clk 00:17:39]} {[%emt 00:00:27]}
Rf3+ {[%clk 00:16:27]} {[%emt 00:03:35]} 40. Kd2 {[%clk 00:17:42]} {[%emt
00:00:08]} Rxc3 {[%clk 00:15:44]} {[%emt 00:00:54]} 41. Kxc3 {[%clk 00:17:15]}
{[%emt 00:00:37]} Bxh1 {[%clk 00:15:52]} {[%emt 00:00:03]} 42. Kd4 {[%clk
00:16:46]} {[%emt 00:00:38]} Kd6 {[%clk 00:16:00]} {[%emt 00:00:02]} 43. Ba4
{[%clk 00:16:37]} {[%emt 00:00:19]} Bc6 {[%clk 00:15:37]} {[%emt 00:00:33]} 44.
Bxc6 {[%clk 00:16:16]} {[%emt 00:00:32]} e5+ {[%clk 00:15:25]} {[%emt
00:00:21]} 45. Ke4 {[%clk 00:15:52]} {[%emt 00:00:33]} 0-1

[Event "Vastgota Open 2022"]
[Site "Skara stadshotell, Jarnvagsgatan 5, Skara, Sweden"]
[Date "2022.10.29"]
[Round "4.1"]
[White "Blomqvist, Erik"]
[Black "Johansson, Ulf"]
[Result "1-0"]
[TimeControl "30 minutes + 10 seconds per move from move one."]
[WhiteTitle "GM"]
[WhiteFideId "1709437"]
[BlackFideId "1701380"]
[WhiteElo "2490"]
[BlackElo "2183"]

1. e4 {[%clk 00:30:18]} {[%emt 00:00:01]} c5 {[%clk 00:30:16]} {[%emt
00:00:04]} 2. Nf3 {[%clk 00:30:26]} {[%emt 00:00:04]} Nc6 {[%clk 00:30:23]} 3.
d4 {[%clk 00:30:21]} {[%emt 00:00:15]} cxd4 {[%clk 00:30:31]} {[%emt 00:00:04]}
4. Nxd4 {[%clk 00:30:30]} Nf6 {[%clk 00:30:32]} {[%emt 00:00:07]} 5. Nc3 {[%clk
00:30:39]} {[%emt 00:00:02]} e5 {[%clk 00:30:36]} {[%emt 00:00:05]} 6. Ndb5
{[%clk 00:30:47]} {[%emt 00:00:02]} d6 {[%clk 00:30:40]} {[%emt 00:00:06]} 7.
Nd5 {[%clk 00:30:55]} {[%emt 00:00:02]} Nxd5 {[%clk 00:30:45]} {[%emt
00:00:05]} 8. exd5 {[%clk 00:31:04]} Nb8 {[%clk 00:30:52]} {[%emt 00:00:05]} 9.
a4 {[%clk 00:31:08]} {[%emt 00:00:03]} Be7 {[%clk 00:30:26]} {[%emt 00:00:36]}
10. Be2 {[%clk 00:31:06]} {[%emt 00:00:13]} f5 {[%clk 00:29:16]} {[%emt
00:01:20]} 11. f4 {[%clk 00:30:26]} {[%emt 00:00:51]} Nd7 {[%clk 00:28:52]}
{[%emt 00:00:34]} 12. O-O {[%clk 00:30:07]} {[%emt 00:00:29]} O-O {[%clk
00:28:42]} {[%emt 00:00:20]} 13. Kh1 {[%clk 00:29:55]} {[%emt 00:00:22]} a6
{[%clk 00:27:03]} {[%emt 00:01:49]} 14. Na3 {[%clk 00:30:03]} {[%emt 00:00:02]}
Bf6 {[%clk 00:26:02]} {[%emt 00:01:10]} 15. Nc4 {[%clk 00:30:08]} {[%emt
00:00:05]} exf4 {[%clk 00:25:17]} {[%emt 00:00:55]} 16. Nxd6 {[%clk 00:29:47]}
{[%emt 00:00:32]} Be5 {[%clk 00:22:37]} {[%emt 00:02:50]} 17. Nc4 {[%clk
00:29:04]} {[%emt 00:00:52]} g5 {[%clk 00:22:40]} {[%emt 00:00:08]} 18. Nxe5
{[%clk 00:27:19]} {[%emt 00:01:55]} Nxe5 {[%clk 00:22:48]} {[%emt 00:00:02]} 19.
Qd4 {[%clk 00:27:19]} {[%emt 00:00:10]} Qf6 {[%clk 00:22:05]} {[%emt 00:00:52]}
20. c4 {[%clk 00:25:09]} {[%emt 00:02:20]} Bd7 {[%clk 00:21:54]} {[%emt
00:00:22]} 21. b4 {[%clk 00:23:51]} {[%emt 00:01:27]} Ng4 {[%clk 00:20:38]}
{[%emt 00:01:27]} 22. Bb2 {[%clk 00:22:25]} {[%emt 00:01:36]} Qxd4 {[%clk
00:20:45]} {[%emt 00:00:02]} 23. Bxd4 {[%clk 00:22:33]} {[%emt 00:00:02]} Rae8
{[%clk 00:20:54]} {[%emt 00:00:02]} 24. Rfe1 {[%clk 00:22:02]} {[%emt
00:00:40]} Re4 {[%clk 00:19:56]} {[%emt 00:01:08]} 25. Bc3 {[%clk 00:17:51]}
{[%emt 00:04:21]} Rfe8 {[%clk 00:18:47]} {[%emt 00:01:19]} 26. Bf1 {[%clk
00:17:59]} {[%emt 00:00:02]} Rxe1 {[%clk 00:17:18]} {[%emt 00:01:39]} 27. Rxe1
{[%clk 00:17:35]} {[%emt 00:00:34]} Rxe1 {[%clk 00:17:26]} {[%emt 00:00:02]} 28.
Bxe1 {[%clk 00:17:44]} {[%emt 00:00:01]} Ne3 {[%clk 00:17:11]} {[%emt
00:00:26]} 29. Bd3 {[%clk 00:17:47]} {[%emt 00:00:07]} Bxa4 {[%clk 00:17:09]}
{[%emt 00:00:11]} 30. d6 {[%clk 00:17:03]} {[%emt 00:00:54]} Kf7 {[%clk
00:16:45]} {[%emt 00:00:34]} 31. Kg1 {[%clk 00:17:03]} {[%emt 00:00:11]} Ke6
{[%clk 00:15:57]} {[%emt 00:00:57]} 32. c5 {[%clk 00:17:09]} {[%emt 00:00:04]}
Bc2 {[%clk 00:15:16]} {[%emt 00:00:51]} 33. Be2 {[%clk 00:17:11]} {[%emt
00:00:08]} Be4 {[%clk 00:14:49]} {[%emt 00:00:38]} 34. Bd2 {[%clk 00:13:50]}
{[%emt 00:03:31]} Nxg2 {[%clk 00:12:49]} {[%emt 00:02:10]} 35. b5 {[%clk
00:13:58]} {[%emt 00:00:03]} Nh4 {[%clk 00:12:37]} {[%emt 00:00:21]} 36. bxa6
{[%clk 00:12:55]} {[%emt 00:01:13]} bxa6 {[%clk 00:12:35]} {[%emt 00:00:12]} 37.
Kf2 {[%clk 00:12:49]} {[%emt 00:00:16]} Bb7 {[%clk 00:11:52]} {[%emt 00:00:53]}
38. Bc3 {[%clk 00:08:36]} {[%emt 00:04:23]} Ng6 {[%clk 00:10:53]} {[%emt
00:01:09]} 39. Bg7 {[%clk 00:07:01]} {[%emt 00:01:46]} g4 {[%clk 00:09:40]}
{[%emt 00:01:23]} 40. Bd3 {[%clk 00:06:40]} {[%emt 00:00:30]} a5 {[%clk
00:09:16]} {[%emt 00:00:34]} 41. Bxf5+ {[%clk 00:06:31]} {[%emt 00:00:19]} Kf7
{[%clk 00:07:36]} {[%emt 00:01:50]} 42. d7 {[%clk 00:06:36]} {[%emt 00:00:06]}
Nh4 {[%clk 00:05:28]} {[%emt 00:02:03]} 1-0